{"text_format":"1","workbook":"xlsx","n_sheets":1,"sheets":["conceptos"],"not_rendered":{"charts":0,"images":2,"macros":1,"external_links":0,"defined_names":1,"comments":0,"pivot_tables":0},"unopened":[],"bounds":{"document_bytes":16777216,"sheet_cells":100000,"rows_first":2000,"rows_last":500,"rows_between":2000,"halvings":0,"cell_chars":16384,"cell_head_chars":4096},"cells_cut":0,"cells_raw":0,"read":"whole","date_system":"1900"}

{"sheet":"conceptos","index":0,"n_rows":122,"n_cols":8,"rows_kept":122,"cut":false,"hidden":false,"merged":[[119,0,119,4],[120,0,121,4],[13,0,13,6],[0,2,0,5],[9,2,9,5],[1,2,3,5],[4,2,4,3],[6,2,6,3],[7,2,7,3],[4,4,4,5],[5,4,5,5],[6,4,6,5],[7,4,7,5],[10,2,10,5],[11,2,11,5],[5,1,8,1]]}
[null,"GOBIERNO DEL ESTADO DE JALISCO","LICITACIÓN PÚBLICA ESTATAL"]
[null,"INSTITUTO DE LA INFRAESTRUCTURA FÍSICA EDUCATIVA DEL","E-REM-S-CON-05919-LP-0084-2020"]
[null,"ESTADO DE JALISCO"]
[]
[null,"DESCRIPCIÓN GENERAL DE LOS TRABAJOS:","FECHA DE INICIO:"]
[null,null,null,"FECHA DE TERMINACIÓN:"]
[null,null,"PLAZO DE EJECUCIÓN:"]
[null,null,"FECHA:"]
[]
[null,"RAZÓN SOCIAL DEL LICITANTE:","NOMBRE, CARGO Y FIRMA DEL LICITANTE:",null,null,null,"DOCUMENTO"]
[]
[]
[]
["PRESUPUESTO DE OBRA"]
[]
["CLAVE","DESCRIPCIÓN","UNIDAD","CANTIDAD","PRECIO UNITARIO ($)","PRECIO UNITARIO ($) CON LETRA","IMPORTE ($) M.N."]
["TRABAJO : SUP-CON-05919","CONTINUACIÓN DE LA CONSTRUCCIÓN DE UNIDAD CUNÍCULA E INSTALACIONES PLUVIALES EN EL CENTRO UNIVERSITARIO DE CIENCIAS BIOLÓGICAS Y AGROPECUARIAS CCT 14USU0130U, UBICADA EN LA LOCALIDAD LAS AGUJAS, MUNICIPIO DE ZAPOPAN, JALISCO.",null,null,null,null,{"$f":"TEXT(SUM(G18 + G79 + G82 + G86), \"$ #,##0.00 ;\")","v":"$ 0.00 "}]
["A","EDIFICIO A",null,null,null,null,{"$f":"TEXT(SUM(G19 + G27 + G34 + G41 + G46 + G54 + G57 + G59 + G64 + G69 + G76), \"$ #,##0.00 ;\")","v":"$ 0.00 "}]
["A.01(150)","TRABAJOS PRELIMINARES                             ",null,null,null,null,{"$f":"TEXT(SUM(G20:G26), \"$ #,##0.00 ;\")","v":"$ 0.00 "}]
[150110,"TRAZO Y NIVELACION DE EDIFICIOS ESTABLECIENDO REFERENCIAS DEFINITIVAS, CON TRANSITO Y NIVEL (EQUIPO TOPOGRAFICO), INCLUYE: PERSONAL TECNICO CALIFICADO, ESTACAS, MOJONERAS, LOCALIZACION DE ENTRE EJES, BANCOS DE NIVEL, MATERIALES PARA SEÑALAMIENTO, EQUIPO, HERRAMIENTA Y MANO DE OBRA.","M2 ","40.1000",0,"CERO PESOS 00/100 M.N.",0,266662]
[152204,"EXCAVACION EN CEPAS POR CUALQUIER MEDIO, MATERIAL TIPO \"B\", DE 0 A 2.00 M. DE PROFUNDIDAD, EN SECO, INCLUYE: AFINE DE TALUDES Y FONDO, TRASPALEOS,  MOVIMIENTOS Y ACARREOS DENTRO DE LA OBRA, HERRAMIENTAS Y MANO DE OBRA, MEDIDO EN BANCO.","M3 ","9.0300",0,"CERO PESOS 00/100 M.N.",0,266663]
[160222,"PLANTILLA DE CONCRETO F'C=100 KG/CM2, TMA=3/4\", DE 5.00 CM DE ESPESOR PROMEDIO. INCLUYE: MATERIALES, HERRAMIENTAS, AFINE, NIVELACION, LIMPIEZA, MANO DE OBRA Y ACARREO DE MATERIALES AL SITIO DE SU UTILIZACION.","M2 ","55.4660",0,"CERO PESOS 00/100 M.N.",0,266664]
[166303,"SUMINISTRO Y FABRICACION DE CONTRATRABE EN CIMENTACION DE CONCRETO DE F´C=250 KG/CM2, TMA 3/4\" R.N CON DIMENSIONDE DE 0.14 X 0.35 M. ARMADA CON 4 VARILLAS # 4 Y E.N° 2 @ 15 CM. PROMEDIO, INCLUYE: ARMADO, COLADO, CURADO, VIBRADO, PRUEBAS DEL CONCRETO, CIMBRA COMUN, DESCIMBRA, DESPERDICIOS, TRASLAPES, CRUCES DE VARILLAS CON ELEMENTOS TRANSVERSALES, ANDAMIOS, MANO DE OBRA, HERRAMIENTA Y ACARREO DE MATERIALES AL SITIO DE SU UTILIZACION, A CUALQUIER ALTURA.","ML ","7.9900",0,"CERO PESOS 00/100 M.N.",0,266665]
[180039,"AFINE Y CONFORMACION DE TERRENO NATURAL Y/O EN AREA DE CORTES, CON UN ESPESOR DE 15 CMS.,  AL 90% PROCTOR MEDIDO COMPACTO, REALIZADO EN FORMA MECANICA CON RODILLO VIBRATORIO, INCLUYE:SUMINISTRO DE AGUA PARA LOGRAR HUMEDAD OPTIMA, EQUIPO MECANICO PESADO, PRUEBAS DE COMPACTACION, AFINE, NIVELACION, HERRAMIENTAS Y MANO DE OBRA.","M2 ","46.8100",0,"CERO PESOS 00/100 M.N.",0,266666]
[180053,"RELLENO DE CEPAS COMPACTADO CON MAQUINARIA, A BASE DE MATERIAL PRODUCTO DE EXCAVACION, A CUALQUIER PROFUNDIDAD, COMPACTADO AL 95% PROCTOR, EN CAPAS DE 15 CM. INCLUYE:  SUMINISTRO DE AGUA PARA LOGRAR HUMEDAD OPTIMA, TENDIDO, TRASPALEOS,  EQUIPO, PRUEBAS DE COMPACTACION, AFINE, NIVELACION, HERRAMIENTAS, MANO DE OBRA Y  ACARREO HASTA EL SITIO DE SU COLOCACION.  (VOLUMEN MEDIDO COMPACTADO).","M3 ","8.2900",0,"CERO PESOS 00/100 M.N.",0,266667]
[180222,"RELLENO COMPACTADO POR CUALQUIER MEDIO CON SUELO-CEMENTO, CON MATERIAL PRODUCTO DE EXCAVACION EN PROPORCIÓN DE 10:1 EN VOLUMEN,  A CUALQUIER PROFUNDIDAD, COMPACTADO AL 90% DE SU PESO VOLUMETRICO SECO MAXIMO (PVSM), EN CAPAS DE 10 A 15 CM. INCLUYE: MATERIALES, MANO DE OBRA, APIZONADOR DE IMPACTO Y HUMEDAD OPTIMA, PRUEBAS DE COMPACTACION, ACARREO HASTA EL SITIO DE SU COLOCACION.","M3 ","2.1200",0,"CERO PESOS 00/100 M.N.",0,266668]
["A.02(200)","ESTRUCTURA                                        ",null,null,null,null,{"$f":"TEXT(SUM(G28:G33), \"$ #,##0.00 ;\")","v":"$ 0.00 "}]
[176002,"CONCRETO HECHO EN OBRA F'C=100 KG/CM2, TMA= 3/4\", R.N. EN CIMENTACION. INCLUYE: MATERIALES, HERRAMIENTAS, COLADO, TENDIDO, RASTEADO, VIBRADO,  NIVELACION, ACABADO, CURADO CON CURACRETO ROJO, PRUEBAS DE RESISTENCIA,  DESPERDICIOS, LIMPIEZA, MANO DE OBRA Y ACARREOS AL SITIO DE SU COLOCACION.","M3 ","0.5000",0,"CERO PESOS 00/100 M.N.",0,266669]
[216442,"SUMINISTRO Y COLOCACION DE CONCRETO  HECHO EN OBRA, F'C=250 KG/CM2, T.M.A.= 3/4\", R. N., EN LOSAS, INCLUYE: AFINE, ACABADO, CURADO, VIBRADO Y DESPERDICIO, A CUALQUIER NIVEL.","M3 ","0.1300",0,"CERO PESOS 00/100 M.N.",0,266670]
[360562,"SUMINISTRO Y COLOCACION DE MALLA ELECTROSOLDADA 6X6-8/8 COMO REFUERZO EN LOSAS, FIRMES Y PISOS DE CONCRETO, INCLUYE: HABILITADO, DESPERDICIOS, TRASLAPES, DOBLECES, CORTES, AJUSTES, MATERIAL DE FIJACION, HERRAMIENTA, MANO DE OBRA Y ACARREO DEL MATERIAL AL SITIO DE SU COLOCACION.","M2 ","1.7400",0,"CERO PESOS 00/100 M.N.",0,266671]
[907910,"SUMINISTRO Y COLOCACION DE LOSACERO CON LAMINA SECCION 4, CALIBRE 22, A=6, DE 12.35 CMS. DE VALLE Y 6.00 CMS. DE CRESTA, PARA LOSAS DE AZOTEA, RAMPAS Y/O ENTREPISOS. INCLUYE: TRAZO, CORTES, AJUSTES, UNIONES, TRASLAPES, CALAFATEO DE JUNTAS, ACARREOS, ELEVACIONES, MATERIALES, DESPERDICIOS, HERRAMIENTA Y MANO DE OBRA.","M2 ","1.7400",0,"CERO PESOS 00/100 M.N.",0,266672]
[910549,"SUMINISTRO Y COLOCACION DE PERNOS NELSON DE 3/4\" X 3\" SOLDADOS EN LOSACERO, INCLUYE: CASQUILLO DE CERAMICA, MATERIALES, SOLDADURA, PRUEBAS, ACARREOS, HERRAMIENTA Y MANO DE OBRA ESPECIALIZADA.","PZA","6.0000",0,"CERO PESOS 00/100 M.N.",0,266673]
[954233,"SUMINISTRO, HABILITADO, COLOCACON Y MONTAJE DE ACERO ESTRUCTURAL ASTM A-992 FY=3,515 KG/CM2, ASTM A-500 B FY=3,234 KG/CM2, ASTM F-1554 GRADO 36 FY=2,531 KG/CM2, ASTM A572 FY=3,515 KG/CM2 Y AST A570 GRADO 50 FY=3,515 KG/CM2. SOLDADOS Y/O ATORNILLADOS, (PARA COLUMNAS METALICAS OC, PERFILES OC, REDONDOS LISOS DE DIFERENTES DIAMETROS, ARMADURAS, PERFILES OR, CE Y CF, PLACAS DE DIFERENTES DIMENSIONES Y CALIBRES, TRABES, VIGAS DE DIFERENTES PERALTES, ETC.) ENSAMBLADAS Y AJUSTADAS PARA COLUMNAS METALICAS, INCLUYE: MATERIALES MENORES Y DE CONSUMO, TRAZO, CORTES, AJUSTES, DESPERDICIOS, ENDEREZADO, ROLADO, BISELADO, DESCALIBRES, TORNILLERIA Y RONDANAS DE DIFERENTES DIAMETROS, SOLDADURA ASTME-7018, UNA PRUEBA RADIOLOGICA POR CADA 500 KG DE ACERO, PINTURA ANTICORROSIVA Y DE LIQUIDOS PENETRANTES PROPORCIONADAS POR UN LABORATORIO CON REGISTRO DE CAMARA, MANO DE OBRA CALIFICADA, HERRAMIENTA, EQUIPO Y ACARREOS. A CUALQUIER ALTURA","KG ","129.2200",0,"CERO PESOS 00/100 M.N.",0,266674]
["A.03(310)","MUROS, CADENAS, CASTILLOS Y REPIZONES.            ",null,null,null,null,{"$f":"TEXT(SUM(G35:G40), \"$ #,##0.00 ;\")","v":"$ 0.00 "}]
[167208,"DALA DE DESPLANTE DE CONCRETO F´C= 250 KG/CM2, T.M.A.= 3/4\", CON SECCION DE 14 X 20 CM., ARMADA CON 4 VARILLAS DEL #3 Y ESTRIBOS DEL #2 @ 15 CM., INCLUYE: ARMADO, COLADO, CURADO, VIBRADO, CIMBRA COMUN, DESCIMBRA, DESPERDICIOS, TRASLAPES, CRUCES DE VARILLAS CON ELEMENTOS TRANSVERSALES, OCHAVOS EN ARISTAS, ANDAMIOS, MANO DE OBRA, HERRAMIENTA Y ACARREO DE MATERIALES AL SITIO DE SU UTILIZACION, A CUALQUIER ALTURA.","ML ","133.0600",0,"CERO PESOS 00/100 M.N.",0,266675]
[167222,"DALA DE DESPLANTE DE CONCRETO F´C= 250 KG/CM2, T.M.A.= 3/4\", CON SECCION DE 14 X 30 CM., ARMADA CON 4 VARILLAS DEL #3 (3/8\") Y ESTRIBOS DEL #2 @ 20 CM., INCLUYE: ARMADO, COLADO, CURADO, VIBRADO, CIMBRA COMUN, DESCIMBRA, DESPERDICIOS, TRASLAPES, CRUCES DE VARILLAS CON ELEMENTOS TRANSVERSALES, ANDAMIOS, MANO DE OBRA, HERRAMIENTA Y ACARREO DE MATERIALES AL SITIO DE SU UTILIZACION, A CUALQUIER ALTURA.","ML ","70.8300",0,"CERO PESOS 00/100 M.N.",0,266676]
[310172,"DALA DE CONCRETO F'C=250 KG/CM2, T.M.A.=3/4\", CON SECCION DE 14 X 15 CMS., ARMADA CON 4 VARILLAS DEL # 3 Y ESTRIBOS DEL NO. 2 @ 20 CMS., INCLUYE: ARMADO, COLADO, CURADO, VIBRADO, CIMBRA COMUN, DESCIMBRA, TRASLAPES, CRUCES DE VARILLAS CON ELEMENTOS TRANSVERSALES, DESPERDICIOS, MANO DE OBRA, HERRAMIENTA Y ACARREO DE MATERIALES AL SITIO DE SU UTILIZACION, A CUALQUIER ALTURA.","ML ","70.8300",0,"CERO PESOS 00/100 M.N.",0,266677]
[312220,"CASTILLO DE CONCRETO F'C=250 KG/CM2, T.M.A.=3/4\", CON SECCION DE 14 X 15 CMS., ARMADA CON 4 VARILLAS DEL # 3 Y ESTRIBOS DEL NO. 2 @ 20 CMS., INCLUYE: ARMADO, COLADO, CURADO, VIBRADO, CIMBRA COMUN, DESCIMBRA, DESPERDICIOS, TRASLAPES, CRUCES DE VARILLAS CON ELEMENTOS TRANSVERSALES, ANDAMIOS, MANO DE OBRA, HERRAMIENTA Y ACARREO DE MATERIALES AL SITIO DE SU UTILIZACION, A CUALQUIER ALTURA.","ML ","46.2000",0,"CERO PESOS 00/100 M.N.",0,266678]
[314742,"MURO DE BLOCK SOLIDO DE CEMENTO 15 X 20 X 40 CMS. A SOGA, ACABADO COMUN, ASENTADO CON MORTERO CEMENTO-ARENA EN PROPORCION 1:3, EN CUALQUIER NIVEL, INCLUYE: TRAZO, NIVELACION, PLOMEO,  ANDAMIOS, DESPERDICIOS, LIMPIEZA, MANO DE OBRA Y ACARREO DE MATERIALES AL SITIO DE SU UTILIZACION.","M2 ","131.9400",0,"CERO PESOS 00/100 M.N.",0,266679]
[316065,"SUMINISTRO Y COLOCACION  DE MURO DE TABLACEMENTO PARA EXTERIORES (DUROCK) DE 9 CM. DE ESPESOR  A DOS CARAS, TERMINADO,  INCLUYE: POSTE Y CANAL DE LAMINA GALVANIZADA DE 64 MM, TORNILLO AUTORROSCABLE DS DE 1 1/4\", TORNILLOS TEK PLANO DE 1/2\",  CINTA DE REFUERZO EXTERIORES DE NYLON, COMPUESTO PARA JUNTAS Y AFINADO BASE COAT EN LA TOTALIDAD DE LA SUPERFICIE DE AMBAS CARAS, ANCLAS EXPANSIVAS, DUROCK DE 13 MM, TRAZO, CORTES, DESPERDICIOS, FIJACION, NIVELACION, PLOMEO, HERRAMIENTAS, EQUIPO, LIMPIEZA DEL AREA DE TRABAJO, MANO DE OBRA Y ACARREO DE MATERIALES AL SITIO DE SU INSTALACION. EN CUALQUIER NIVEL.","M2 ","235.7200",0,"CERO PESOS 00/100 M.N.",0,266680]
["A.04(355)","RECUBRIMIENTOS Y ACABADOS                         ",null,null,null,null,{"$f":"TEXT(SUM(G42:G45), \"$ #,##0.00 ;\")","v":"$ 0.00 "}]
[351019,"ZARPEO DE MUROS, CADENAS, CASTILLO Y  BOVEDA, CON MORTERO DE CEMENTO-ARENA DE RIO 1:3, INCLUYE:  ANDAMIOS, ACARREO, ELEVACION DE MATERIAL, HERRAMIENTAS, EQUIPO DE SEGURIDAD Y MANO DE OBRA, A CUALQUIER NIVEL.","M2 ","263.8800",0,"CERO PESOS 00/100 M.N.",0,266681]
[351031,"APLANADO  A BASE DE MORTERO DE YESO, TAPADO A NIVEL,  ACABADO PULIDO,  INCLUYE: MATERIALES, ANDAMIOS, ACARREO, HERRAMIENTAS, MANO DE OBRA, Y ELEVACION DE MATERIAL.","M2 ","461.9200",0,"CERO PESOS 00/100 M.N.",0,266682]
[355029,"APLANADO DE MORTERO CEMENTO-ARENA 1:4 DE 3.0 CM DE ESPESOR, A PLOMO Y REGLA, ACABADO TERMINADO PULIDO O APALILLADO, INCLUYE: MATERIALES, ANDAMIOS, REMATES, FILETES, HERRAMIENTAS, LIMPIEZA, MANO DE OBRA Y ACARREO DE MATERIALES AL SITIO DE SU UTILIZACION. A CUALQUIER NIVEL.","M2 ","263.8800",0,"CERO PESOS 00/100 M.N.",0,266683]
[962419,"SUMINISTRO Y COLOCACION DE LOSETA CERAMICA PARA MURO ( AZULEJO ), CON RECUBRIMIENTO ESMALTADO, DE 25 X 50 CM., MCA.  INTERCERAMIC, LINEA vesubio, CUALQUIER COLOR, DE PRIMERA CALIDAD, ASENTADO CON PEGAZULEJO Y JUNTEDO CON JUNTEADOR DE COLOR,  JUNTAS A HUESO, INCLUYE: TRAZO, CORTE, REMATES, ESCUADRE, DESPERDICIOS, DESPATINADO, EMBOQUILLADOS, CERTIFICADO DE CALIDAD, HERRAMIENTAS, MATERIALES,  MANO DE OBRA, LIMPIEZA Y ACARREO DE MATERIALES AL SITIO DE SU UTILIZACION, A CUALQUIER NIVEL.","M2 ","61.0000",0,"CERO PESOS 00/100 M.N.",0,266684]
["A.05(372)","PISOS                                             ",null,null,null,null,{"$f":"TEXT(SUM(G47:G53), \"$ #,##0.00 ;\")","v":"$ 0.00 "}]
[344522,"JUNTA DE CONTRACCION  EN PISOS, A BASE DE SONOFLEX, CELOTEX, FIBRACEL, SIKA ROLL DE 3/8\" DE DIAM. O SIMILAR CON UNA SECCION DE 0.60 CM X 2.00  Y SELLO DE SIKAFLEX-1A, GRIS O SIMILAR CON UNA SECCION DE 0.60 CM. DE ANCHO  X 1.00 CM. DE PROFUNDIDAD, MATERIALES, DESPERDICIOS, LIMPIEZA, IMPRIMACION, HERRAMIENTAS, MANO DE OBRA Y ACARREO DEL PRODUCTO SOBRANTE FUERA DE LA OBRA.","ML ","62.4000",0,"CERO PESOS 00/100 M.N.",0,266685]
[344836,"CORTE CON DISCO DE DIAMANTE EN PISO Y/O LOSA DE CONCRETO, 3.00 CM. DE PROFUNDIDAD Y 0.80 CM. DE ANCHO, INCLUYE: TRAZO, HERRAMIENTAS, EQUIPO DE CORTE, EQUIPO DE SEGURIDAD, ACARREOS, MANO DE OBRA Y LIMPIEZA DEL AREA DE TRABAJO.","ML ","52.2800",0,"CERO PESOS 00/100 M.N.",0,266686]
[360460,"HABILITADO, SUMINISTRO Y COLOCACION DE PASAJUNTAS EN PISOS DE CONCRETO CON VARILLA DE REDONDO LISO DE 1/2\" DE DIAMETRO Y 50 CM. LONGITUD, ENCAMISADA CON POLIDUCTO NARANJA DE 5/8\" DIAM., INCLUYE: GRASA MECANICA EN MANGUERA, NIVELACION, ELEMENTOS DE SUJECION, DESPERDICIOS, HERRAMIENTAS Y MANO DE OBRA.","PZA","347.0000",0,"CERO PESOS 00/100 M.N.",0,266687]
[373099,"PISO DE CONCRETO PREMEZCLADO F'C=200 KG/CM², T.M.A. 3/4\", DE 12 CM. DE ESPESOR, COLADO EN CUADROS NO MAYORES DE 4.50 ML POR LADO, ACABADO PULIDO Y/O RAYADO CON BROCHA DE PELO DE FORMA INTEGRAL, SIN UTILIZACION DE PASTA, INCLUYE: TRAZO, NIVELACION, AFINE Y COMPACTACION DEL TERRENO, AGUA, DESPERDICIOS, ACARREOS, REGLEADO, CIMBRA MACHIMBRADA (HEMBRA MACHO) EN FRONTERAS, DESCIMBRA, COLADO, CURADO, REMATES, ESCALONADO, MUESTREADO, JUNTAS FRIAS CON VOLTEADOR, HERRAMIENTAS Y MANO DE OBRA","M2 ","230.7400",0,"CERO PESOS 00/100 M.N.",0,266688]
[962421,"SUMINISTRO Y DE APLICACION DE ACIDO OXIDANTE MCA. KEMIKO , INCLUYE: MATERIALES, ACARREOS, CORTES, DESPERDICIOS, MANO DE OBRA, EQUIPO Y HERRAMIENTA","M2 ","60.8800",0,"CERO PESOS 00/100 M.N.",0,266689]
[962422,"SUMINISTRO Y COLOCACION DE MOLDURA PARA ACABADO DE ZOCLO PARA PISO BIOSPEC, M-GE-8 ROUND CAP 1/8'' - COLOR GLACIER 910 - COLOR SYNC - BOBINA CON 182.88ML,INCLUYE:  MATERIALES, MANO DE OBRA, EQUIPO Y HERRAMIENTA.\n","ML ","79.5600",0,"CERO PESOS 00/100 M.N.",0,266690]
[962423,"SUMINISTRO Y COLOCACION DE ACCESORIO CURVO PARA ZOCLO (CURVA SANITARIA) M-GE-8 COVE STICK SEMIRIGID - COLOR NATURAL - BOBINA CON 152.40 ML, INCLUYE:  MATERIALES, MANO DE OBRA, EQUIPO Y HERRAMIENTA.\n","ML ","79.5600",0,"CERO PESOS 00/100 M.N.",0,266691]
["A.06(382)","ELEMENTOS COMPLEMENTARIOS DE ALBAÑILERIA          ",null,null,null,null,{"$f":"TEXT(SUM(G55:G56), \"$ #,##0.00 ;\")","v":"$ 0.00 "}]
[314812,"FORJADO DE ARRIATE, MURETE O MACHUELO,  CON BLOCK DE JALCRETO DE 11 X 14 X 28 CM., A SOGA, DE 30 A 70 CM. DE ALTURA SOBRE EL NIVEL DE PISO TERMINADO, ASENTADO Y APLANADO APALILLADO FINO CON MORTERO CEM-ARE 1:3, POR AMBAS CARAS, INCLUYE: TRAZO, NIVELACION, EXCAVACION, RELLENOS, RETIRO DE MATERIAL PRODUCTO DE EXCAVACION FUERA DE LA OBRA, CIMENTACION DEL MISMO BLOCK, APLANADO, BOQUILLAS, REMATES, MATERIAL, HERRAMIENTAS, LIMPIEZAS, MANO DE OBRA Y ACARREOS DE MATERIALES AL SITUO DE SU UTILIZACION.","ML ","1.1000",0,"CERO PESOS 00/100 M.N.",0,266692]
[964315,"LOSA DE CONCRETO F'C=200 KG/CM2 DE 10 CM DE ESP. Y 60 CM DE ANCHO, PARA RECIBIR LAVABO U OVALIN, ARMADA CON VARILLA #3 (3/8\") A CADA 15 CM, EN AMBOS SENTIDOS. INCLUYE: CIMBRA COMUN Y DESCIMBRA, DESPERDICIOS, REMATES, HERRAMIENTAS, MANO DE OBRA  Y ACARREO DE MATERIAL AL SITIO DE SU UTILIZACION, A CUALQUIER NIVEL.","ML ","2.0000",0,"CERO PESOS 00/100 M.N.",0,266693]
["A.07(390)","CARPINTERIA                                       ",null,null,null,null,{"$f":"TEXT(SUM(G58:G58), \"$ #,##0.00 ;\")","v":"$ 0.00 "}]
[966193,"SUMINISTRO Y COLOCACION DE PUERTA DE TAMBOR CON TRIPLAY DE CEDRO DE 6 MM. POR AMBAS CARAS, DE  0.90 MTS. X 2.10 MTS. FORMADA A BASE DE BASTIDOR Y MARCO DE  MADERA DE PINO DE PRIMERA DE  2\"  X  1 1/2\"   Y  PEINAZOS DE 1 1/2\" X 1 1/2\"  A CADA 30 CMS. EN SENTIDO HORIZONTAL, ACABADO EN LACA COLOR GRIS,  INCLUYE: MARCO DE MADERA DE CEDRO DE  ½\" X 3\" Y TOPES DE MADERA DE CEDRO, RESANADOR PARA MADERA, BISAGRA DE LIBRO DE 3\", DESPERDICIOS, MATERIALES MENORES Y DE CONSUMO, ACARREO DE MATERIALES AL SITIO DE SU COLOCACION,  HERRAMIENTAS, LIMPIEZA DEL AREA DE TRABAJO Y MANO DE OBRA ESPECIALIZADA.","PZA","16.0000",0,"CERO PESOS 00/100 M.N.",0,266694]
["A.08(393)","PINTURA                                           ",null,null,null,null,{"$f":"TEXT(SUM(G60:G63), \"$ #,##0.00 ;\")","v":"$ 0.00 "}]
[393022,"PINTURA VINIL-ACRÍLICA A BASE DE AGUA ACABADO SEMIMATE  LAVABLE, PARA INTERIORES Y EXTERIORES QUE NO DESPRENDA VAPORES TÓXICOS NI OLORES DESAGRADABLES, CON LAS SIGUIENTES CARACTERÍSTICAS ( SÓLIDOS POR PESO 46-52%, SÓLIDOS POR VOLUMEN 30-36%, VISCOSIDAD DE 100-130 UK A 25°C, DENSIDAD > O = 1.2 TON/M3., LAVABILIDAD > O = 4,000 CICLOS, TIEMPO DE SECADO AL TACTO, 30-40 MIN., TIEMPO DE SECADO DURO < O = 8 HRS., CICLO DE CURADO DE 7 DIAS, PH 6-8, RENDIMIENTO EN SUP. LISA 8-10 M2/LT., FINEZA DE MOLIDO (HEGMAN) 3-7 UH.)  EN MUROS APLANADOS DE MEZCLA APALILLADO O PULIDO, TRABAJO TERMINADO, A DOS MANOS, INCLUYE: MATERIALES MENORES Y DE CONSUMO, ANDAMIOS, PREPARACION DE LA SUPERFICIE, SELLADO DE LA SUPERFICIE, HERRAMIENTAS, LIMPIEZA, MANO DE OBRA Y  ACARREOS DE MATERIALES AL SITIO DE SU UTILIZACIÓN.","M2 ","860.4800",0,"CERO PESOS 00/100 M.N.",0,266695]
[393080,"PINTURA VINIL-ACRÍLICA A BASE DE AGUA ACABADO SEMIMATE  LAVABLE, PARA INTERIORES Y EXTERIORES QUE NO DESPRENDA VAPORES TÓXICOS NI OLORES DESAGRADABLES, CON LAS SIGUIENTES CARACTERÍSTICAS ( SÓLIDOS POR PESO 46-52%, SÓLIDOS POR VOLUMEN 30-36%, VISCOSIDAD DE 100-130 UK A 25°C, DENSIDAD > O = 1.2 TON/M3., LAVABILIDAD > O = 4,000 CICLOS, TIEMPO DE SECADO AL TACTO, 30-40 MIN., TIEMPO DE SECADO DURO < O = 8 HRS., CICLO DE CURADO DE 7 DIAS, PH 6-8, RENDIMIENTO EN SUP. LISA 8-10 M2/LT., FINEZA DE MOLIDO (HEGMAN) 3-7 UH.)  EN TECHOS Y PLAFONES DE DUROCK, TABLARROCA O SIMILARES, TRABAJO TERMINADO, A DOS MANOS, INCLUYE: MATERIALES MENORES Y DE CONSUMO, ANDAMIOS, PREPARACION DE LA SUPERFICIE, SELLADO DE LA SUPERFICIE, HERRAMIENTAS, LIMPIEZA, MANO DE OBRA Y  ACARREOS DE MATERIALES AL SITIO DE SU UTILIZACIÓN.","M2 ","38.3900",0,"CERO PESOS 00/100 M.N.",0,266696]
[393122,"PINTURA DE ESMALTE ALQUIDALICO ANTICORROSIVO, ACABADO BRILLANTE, PARA INTERIORES Y EXTERIORES QUE NO DESPRENDA VAPORES TÓXICOS NI OLORES DESAGRADABLES, CON LAS SIGUIENTES CARACTERÍSTICAS ( SÓLIDOS POR PESO 49-60%, SÓLIDOS POR VOLUMEN 40-46%, VISCOSIDAD DE 110-160 UK A 25°C, DENSIDAD 0.9-1.2 TON/M3., BRILLO A 60°C, 90%, TIEMPO DE SECADO AL TACTO, < O = 6 HRS., TIEMPO DE SECADO DURO < O = 24 HRS., ADHERENCIA 100%, RENDIMIENTO EN SUP. LISA 8-10 M2/LT., DILUCIÓN MÁXIMA (AGUARRÁS, THINER), 15 %,  EN HERRERIA CERRADA (DUELA DE LAMINA ACANALADA), TRABAJO TERMINADO, A DOS MANOS, INCLUYE: MATERIALES MENORES Y DE CONSUMO, ANDAMIOS, PREPARACION DE LA SUPERFICIE, HERRAMIENTAS, LIMPIEZA, MANO DE OBRA Y  EQUIPO DE SEGURIDAD. A CUALQUIER NIVEL.","M2 ","79.8000",0,"CERO PESOS 00/100 M.N.",0,266697]
[393192,"PINTURA DE ESMALTE ACRILICO ANTIBACTERIAL, ACABADO BRILLANTE, PARA INTERIORES Y EXTERIORES, MARCA SHERWIN WILLIAMS, EN MUROS, TECHOS Y/O PLAFONES DE DUROCK, TABLARROCA O SIMILARES , ACABADOS APALILLADOS Y/O PULIDOS, TRABAJO TERMINADO, A DOS MANOS, INCLUYE: MATERIALES MENORES Y DE CONSUMO, ANDAMIOS, PREPARACION DE LA SUPERFICIE, SELLADO, HERRAMIENTAS, DESPERDICIOS, LIMPIEZA, MANO DE OBRA Y  EQUIPO DE SEGURIDAD. A CUALQUIER ALTURA.","M2 ","75.3000",0,"CERO PESOS 00/100 M.N.",0,266698]
["A.09(410)","CANCELERIA, HERRERIA, ALUMINIO, VIDRIOS Y CHAPAS  ",null,null,null,null,{"$f":"TEXT(SUM(G65:G68), \"$ #,##0.00 ;\")","v":"$ 0.00 "}]
[420017,"SUMINISTRO, HABILITADO Y COLOCACION DE CANCELERIA FABRICADA  EN ALUMINIO ANODIZADO EN COLOR NEGRO MATE CON PERFILES COMERCIALES DE 3\" X 1.25\",  MCA. CUPRUM,  LINEA PANORAMA O SIMILAR, INCLUYE: TRAZO, CORTES, AJUSTES, MATERIALES, CORREDERAS, JALADERAS, OPERADORES, REPISON, SELLADO PERIMETRAL, SILICON, VINIL, HERRAJES, ELEMENTOS DE FIJACION, MATERIALES MENORES Y DE CONSUMO, DESPERDICIOS, HERRAMIENTAS, MANO DE OBRA ESPECIALIZADA, LIMPIEZA, FLETES, EQUIPO Y ACARREO DE MATERIALES AL SITIO DE SU COLOCACION, A CUALQUIER NIVEL.","M2 ","48.9000",0,"CERO PESOS 00/100 M.N.",0,266699]
[424039,"SUMINISTRO Y COLOCACION DE CHAPA PHILLIPS DOBLE MANIJA MOD.  549 A.N., INCLUYE: HERRAMIENTA, MATERIALES, ACARREO DE MATERIAL AL SITIO DE SU UTILIZACION, A CUALQUIER NIVEL Y TODO LO NECESARIO PARA SU CORRECTA INSTALACION Y MANTENIMIENTO.","PZA","13.0000",0,"CERO PESOS 00/100 M.N.",0,266700]
[426010,"SUMINISTRO Y COLOCACION DE CRISTAL FLOTADO DE 6 MM. DE ESPESOR,  ASENTADO CON SILICON, INCLUYE: CORTES, DESPERDICIOS Y ACARREO DE MATERIALES AL SITIO DE SU UTILIZACION A CUALQUIER NIVEL.","M2 ","34.7100",0,"CERO PESOS 00/100 M.N.",0,266701]
[970529,"SUMINISTRO Y COLOCACION  DE CRISTAL TEMPLADO CLARO DE 6 MM. DE ESPESOR, CORTADO Y TEMPLADO DE ACUERDO A MODULACION DE LAS CANCELERIAS EN OBRA, ACABADO ESMERILADO,  INCLUYE: EMPAQUES, SELLADO PERIMETRAL CON SILICON, CALZAS DE NEOPRENO, ELEMENTOS DE FIJACION, NIVELADO,  AJUSTES, DESPERDICIOS, TEMPLADO, HERRAMIENTAS, MANO DE OBRA ESPECIALIZADA Y ACARREO DEL MATERIALES AL SITIO DE SU COLOCACION.\n","M2 ","3.4500",0,"CERO PESOS 00/100 M.N.",0,266702]
["A.10(510)","INSTALACION ELECTRICA EN EDIFICIO                 ",null,null,null,null,{"$f":"TEXT(SUM(G70:G75), \"$ #,##0.00 ;\")","v":"$ 0.00 "}]
[540558,"SUMINISTRO E INSTALACION DE TABLERO DE ALUMBRADO Y DISTRIBUCION, CAT. BTN41M10012E, 3F, 4H, MCA. BTICINO, GABINETE NEMA 1, DE 20\" DE ANCHO, CON INTERRUPTOR PRINCIPAL DE 3 X 100 AMP. INCLUYE: FIJACION, CONEXION, IDENTIFICACION DE CIRCUITOS, PEINADO DE CABLES, PRUEBAS, LIMPIEZA, MATERIALES MENORES Y DE CONSUMO Y ACARREOS AL SITIO DE SU INSTALACION.","PZA","1.0000",0,"CERO PESOS 00/100 M.N.",0,266703]
[919540,"SUMINISTRO Y COLOCACION DE APAGADOR SENCILLO 15 AMP. 127 V MCA. NIESSEN LINEA STEP, INCLUYE: TAPA, MATERIALES MENORES, HERRAMIENTAS, PRUEBAS, MANO DE OBRA Y TODO LO NECESARIO PARA SU PERFECTO FUNCIONAMIENTO.","PZA","8.0000",0,"CERO PESOS 00/100 M.N.",0,266704]
[919541,"SUMINISTRO Y COLOCACION DE CONTACTO DUPLEX POLARIZADO ATERRIZADO, MCA. NIESSEN LINEA STEP, INCLUYE: TAPA, MATERIALES MENORES, HERRAMIENTAS, PRUEBAS, MANO DE OBRA Y TODO LO NECESARIO PARA SU PERFECTO FUNCIONAMIENTO.","PZA","29.0000",0,"CERO PESOS 00/100 M.N.",0,266705]
[919543,"SUMINISTRO Y COLOCACION DE PLACA DE RESINA DE 1, 2 O 3 VENTANAS, MCA. NIESSEN LINEA STEP COLOR BLANCO POLAR, INCLUYE: SUMINISTRO, FLETES, MANIOBRAS, ACARREOS, COLOCACION A CUALQUIER NIVEL, MATERIALES MENORES, HERRAMIENTAS, PRUEBAS, MANO DE OBRA Y TODO LO NECESARIO PARA SU PERFECTO FUNCIONAMIENTO.","PZA","20.0000",0,"CERO PESOS 00/100 M.N.",0,266706]
[975031,"SALIDA ELECTRICA DE CENTRO AISLADA OCULTA, CON TUBERIA Y CONEXIONES CONDUIT DE PVC PESADO DE 13, 19 Y 25 MM. DE DIAMETRO, CABLE VINANEL THW-LS 600 V. A 75° C, 90° C, MARCA CONDUCTORES MONTERREY, (VIAKON-PROTOCOLIZADO), CABLE VINANEL 21 THW-LS 600 V. A 75° C, 90° C, MARCA CONDUMEX (CONDUMEX PROTOCOLIZADO).  CALIBRE 12 EN FASES Y 12 EN TIERRA FISICA, CAJAS DE REGISTRO  CUADRADAS, CHALUPAS Y TAPAS GALVANIZADAS TIPO REFORZADO, INCLUYE: TRAZO, RANURAS, MATERIALES MENORES, HERRAMIENTA, MANO DE OBRA ESPECIALIZADA , CONEXIONES, LIMPIEZA DEL AREA DE TRABAJO, PRUEBAS, DESPERDICIOS Y ACARREO DEL MATERIAL AL SITIO DE SU COLOCACION, EN CUALQUIER NIVEL.","SAL","12.0000",0,"CERO PESOS 00/100 M.N.",0,266707]
[977041,"SUMINISTRO Y COLOCACION DE LUMINARIO TECNOLITE MODELO PAN-LED/72W/40/S PARGI IV, INCLUYE: PRUEBAS, MATERIAL DE FIJACION Y ACARREOS, ( LA LUMINARIA NO DEBERA BALACEARCE DIRECTAMENTE A LA LOSA DE CONCRETO, SE DEBERA APLICAR EL PERNO ANCLA HILTY Y DESPUES BARRENAR LA LUMINARIA PARA SU POSTERIOR COLOCACION CON LA UTILIZACION DE ROLDANAS PLANAS GALVANIZADAS)","PZA","60.0000",0,"CERO PESOS 00/100 M.N.",0,266708]
["A.11(564)","INSTALACION HIDRAULICA, SANITARIA Y GAS EN EDIF.  ",null,null,null,null,{"$f":"TEXT(SUM(G77:G78), \"$ #,##0.00 ;\")","v":"$ 0.00 "}]
[571102,"SALIDA SANITARIA A MUEBLE, CONSISTENTE EN TUBERIA Y CONEXIONES DE PVC DE 2\" Y 4\" DE DIAMETRO, INCLUYE: DESPERDICIO DE TUBERIA, LINEA DE VENTILACION (DESFOGUE),  COPLES, CODOS, TEES, YEES, REDUCCIONES, REGISTRO SANITARIO, MATERIALES MENORES, FLETES Y ACARREO DE LOS MATERIALES AL SITIO DE SU INSTALACION Y PRUEBAS.\n","SAL","21.0000",0,"CERO PESOS 00/100 M.N.",0,266709]
[577162,"SALIDA HIDRAULICA DE AGUA FRIA Y AGUA CALIENTE PARA ALIMENTACION A MUEBLES SANITARIOS, CON TUBERIAS Y CONEXIONES DE POLIPROPILENO DE ALTA DENSIDAD, PARA TERMUFUSIONAR, CLASE 20, DE 1/2\" A 1 1/2\" DE DIAMETRO, INCLUYE: TRAZO, RANURAS, CAMARAS CONTRA GOLPE DE ARIETE, CONEXIONES, ( COPLES, CODOS, TAPONES, TEES, YEES, REDUCCIONES, ETC),  VALVULAS, TUERCAS UNION EN CUADROS DE VALVULAS, MATERIALES MENORES Y DE CONSUMO, ELEMENTOS DE FIJACION, DESPERDICIOS,  HERRAMIENTAS, LIMPIEZA, MANO DE OBRA, PRUEBAS HIDROSTATICAS, FLETES Y ACARREO DE LOS MATERIALES AL SITIO DE SU INSTALACION. (EN CUALQUIER NIVEL).","SAL","23.0000",0,"CERO PESOS 00/100 M.N.",0,266710]
["02","RED ELECTRICA",null,null,null,null,{"$f":"TEXT((G80), \"$ #,##0.00 ;\")","v":"$ 0.00 "}]
["02.01(511)","INSTALACION ELECTRICA EN OBRA EXTERIOR            ",null,null,null,null,{"$f":"TEXT(SUM(G81:G81), \"$ #,##0.00 ;\")","v":"$ 0.00 "}]
[880617,"SUMINISTRO Y COLOCACION DE REGISTRO ELECTRICO DE CONCRETO, PREFABRICADO, PARA ALUMBRADO DE 40 X 60 X 80 CM., CON TAPA DE CONCRETO,  MARCO Y CONTRAMARCO  DE ACERO GALVANIZADO, INCLUYE: TRAZO, EXCAVACION, RELLENOS COMPACTADOS, FILTRO DE GRAVA, RESANADO FINO DE TUBERIAS EN SU INTERIOR, HERRAMIENTAS, MANO DE OBRA, FLETES, ACARREO AL SITIO DE SU COLOCACION Y LIMPIEZA DEL AREA DE TRABAJO.","PZA","4.0000",0,"CERO PESOS 00/100 M.N.",0,266711]
["03","RED SANITARIA",null,null,null,null,{"$f":"TEXT((G83), \"$ #,##0.00 ;\")","v":"$ 0.00 "}]
["03.01(565)","INSTALACION HIDRAULICA, SANITARIA Y GAS EN O. EXT.",null,null,null,null,{"$f":"TEXT(SUM(G84:G85), \"$ #,##0.00 ;\")","v":"$ 0.00 "}]
[585014,"SUMINISTRO Y COLOCACION DE TUBO DE P.V.C. SANITARIO (ANGER)  SERIE 25, CAMPANA, DE 6\" (150 MM) DIAM., INCLUYE: CONEXIONES, TRAZO, EXCAVACION,  PASOS POR CIMENTACION, CAMA DE ARENA, RELLENO COMPACTADO, DESPERDICIOS, PRUEBAS Y ACARREO DE MATERIALES AL SITIO DE SU COLOCACION.","ML ","26.1800",0,"CERO PESOS 00/100 M.N.",0,266712]
[596036,"REGISTRO SANITARIO DE 0.60 X 0.60 X 0.80 M, CON MURO DE LADRILLO DE LAMA DE 5.5 X 11.0 X 22.0 CM, ASENTADO CON MORTERO CEMENTO-ARENA 1:3, APLANADO CON MORTERO CEMENTO-ARENA DE RIO 1:3, INCLUYE: TRAZO, EXCAVACIONES, NIVELACION, RELLENO CON MATERIAL PRODUCTO DE EXCAVACION, RETIRO DE MATERIAL EXCEDENTE FUERA DE LA OBRA, TAPA DE CONCRETO F'C=200 KG/CM2, MARCO Y CONTRAMARCO DE ANGULO DE 1 1/2\" X 1/8\", MATERIALES, DESPERDICIOS, HERRAMIENTAS, MANO DE OBRA, LIMPIEZA, RETIRO DE MATERIAL PRODUCTO DE EXCAVACION FUERA DE LA OBRA Y ACARREO DE MATERIALES AL SITIO DE SU UTILIZACION.","PZA","8.0000",0,"CERO PESOS 00/100 M.N.",0,266713]
["03A","RED DE DRENAJE PLUVIAL",null,null,null,null,{"$f":"TEXT((G87), \"$ #,##0.00 ;\")","v":"$ 0.00 "}]
["03A.01(568)","INSTALACION RED PLUVIAL                           ",null,null,null,null,{"$f":"TEXT(SUM(G88:G98), \"$ #,##0.00 ;\")","v":"$ 0.00 "}]
[585061,"SUMINISTRO Y COLOCACION DE TUBO DE P.V.C. SANITARIO (ANGER) SERIE 25, CAMPANA, DE 8\" (200 MM) DIAM., INCLUYE: CONEXIONES, TRAZO,  DESPERDICIOS, PRUEBAS Y ACARREO DE MATERIALES AL SITIO DE SU COLOCACION.","ML ","9.6000",0,"CERO PESOS 00/100 M.N.",0,266714]
[585064,"SUMINISTRO Y COLOCACION DE TUBO DE P.V.C. SANITARIO (ANGER) SERIE 25, CAMPANA, DE 6\" (150 MM) DIAM., INCLUYE: CONEXIONES, TRAZO,  DESPERDICIOS, PRUEBAS Y ACARREO DE MATERIALES AL SITIO DE SU COLOCACION.","ML ","39.2000",0,"CERO PESOS 00/100 M.N.",0,266715]
[585065,"SUMINISTRO Y COLOCACION DE TUBO DE P.V.C. SANITARIO (ANGER) SERIE 25, CAMPANA, DE 10\" (250 MM) DIAM., INCLUYE: CONEXIONES, TRAZO,  DESPERDICIOS, PRUEBAS Y ACARREO DE MATERIALES AL SITIO DE SU COLOCACION.","ML ","19.6000",0,"CERO PESOS 00/100 M.N.",0,266716]
[585665,"SUMINISTRO Y COLOCACION DE CODO DE P.V.C. SANITARIO ANGER CON CAMPANA DE 6\" (150 MM.) DE DIAMETRO X 90°, INCLUYE: MATERIALES MENORES, PRUEBAS, DESPERDICIOS, MANO DE OBRA Y ACARREO DE MATERIALES AL SITIO DE SU COLOCACION.","PZA","4.0000",0,"CERO PESOS 00/100 M.N.",0,266717]
[592129,"SUMINISTRO Y COLOCACION DE COLADERA HELVEX MOD. 444 CON CHAROLA DE PLOMO. INCLUYE: MATERIALES MENORES, PRUEBAS Y ACARREOS.(PARA P.V.C.4\")","PZA","4.0000",0,"CERO PESOS 00/100 M.N.",0,266718]
[596049,"REGISTRO SANITARIO DE 0.80 X 0.80 X 1.00 M, CON MURO DE LADRILLO DE LAMA DE 5.5 X 11.0 X 22.0 CM, ASENTADO CON MORTERO CEMENTO-ARENA 1:3, APLANADO CON MORTERO CEMENTO-ARENA DE RIO 1:3, INCLUYE: TRAZO, EXCAVACIONES, NIVELACION, RELLENO CON MATERIAL PRODUCTO DE EXCAVACION, RETIRO DE MATERIAL EXCEDENTE FUERA DE LA OBRA, TAPA DE CONCRETO F'C=200 KG/CM2, MARCO Y CONTRAMARCO DE ANGULO DE 1 1/2\" X 1/8\", MATERIALES, DESPERDICIOS, HERRAMIENTAS, MANO DE OBRA, LIMPIEZA, RETIRO DE MATERIAL PRODUCTO DE EXCAVACION FUERA DE LA OBRA Y ACARREO DE MATERIALES AL SITIO DE SU UTILIZACION.","PZA","7.0000",0,"CERO PESOS 00/100 M.N.",0,266719]
[596522,"CANAL DE DESAGÜE TIPO TRINCHERA CON MEDIDAS GENERALES INTERIORES DE 20 CM DE ANCHO POR 30 CM. DE ALTURA PROMEDIO, FORJADA CON MUROS DE TABICON DE JALCRETO DE 11 X 14 X 28 CM. A SOGA, ASENTADOS Y  APLANADOS POR LA CARA INTERIOR CON MORTERO CEMENTO-ARENA EN PROPORCION 1:3, ACABADO PULIDO,  INCLUYE: EXCAVACIONES, PLANTILLA, FIRME DE CONCRETO F´C=150KG/CM2 DE 8 CM DE ESPESOR, RELLENOS, AFINE, COMPACTACION, CONTRAMARCO DE ANGULO DE 1 1/2\" X 1/8\" Y REJILLA  A BASE DE DE ANGULO 1 1/2\" X 1/8\" Y SOLERA DE 1\" X 1/8\" , PINTURA DE ESMALTE EN REJILLA A DOS MANOS, HERRAMIENTAS, MATERIALES, MANO DE OBRA, LIMPIEZA Y RETIRO DE MATERIALES PRODUCTO DE EXCAVACION Y DEPERDICIOS FUERA DE LA OBRA.","ML ","3.0000",0,"CERO PESOS 00/100 M.N.",0,266720]
[597021,"POZO DE ABSORCION DE 1.00 MTS. DE DIAMETRO X 3.00 MTS. DE PROFUNDIDAD, MEDIDAS INTERIORES, CON MURO DE LADRILLO DE LAMA  HUACALEADO, INCLUYE: MATERIALES, TRAZO, EXCAVACION EN MATERIAL TIPO \"C\", RELLENO Y TAPA DE CONCRETO ARMADO, FILTRO LATERAL CON GRAVA, NIVELACION, PLOMEO, DESPERDICIOS, PASOS EN MURO PARA CONEXION DE TUBO, LIMPIEZA DEL AREA DE TRABAJO, ADEMES, CONEXIONES DEL POZO DE ABSORCION A REGISTROS CON TUBO DE P.V.C. SANITARIO, HERRAMIENTAS, MANO DE OBRA Y  ACARREOS Y RETIRO DEL MATERIAL EXCEDENTE FUERA DE LA OBRA.","PZA","6.0000",0,"CERO PESOS 00/100 M.N.",0,266721]
[597175,"SUMINISTRO E INSTALACION DE CISTERNA PREFABRICADA (CONTENEDOR DE POLIETILENO) DE 10.00 M3 DE CAPACIDAD, MARCA ROTOPLAS, INCLUYE: EXCAVACION, FIRME DE CONCRETO SIMPLE DE 5.00 CMS. DE ESPESOR, MALLA DE GALLINERO SUJETA CON VARILLA DE 3/8\" Y MORTERO CEMENTO-ARENA EN PROPORCION 1:5 DE 3 CMS. DE ESPESOR, RELLENO CON SUELO-CAL A RAZON DE 6 PARTES DE MATERIAL DE EXCAVACION O MATERIAL DE BANCO POR 1 PARTE DE CAL, BROCAL Y TAPA METALICA PARA REGISTRO, LOZA SUPERIOR CON CONCRETO F'C=200 KG/CM2 DE 12 CMS. DE ESPESOR ARMADA CON VARILLA DEL NO. 3 CON ACABADO ESCOBILLADO O APALILLADO, AGUA PARA LLENADO DE CISTERNA DURANTE EL RELLENO, MADERA DE PINO DE 2DA. PARA PUNTALES EN INTERIOR DE CISTERNA, PASO DE LOSA DE CONCRETO, DESPERDICIOS, EQUIPO, HERRAMIENTA Y MANO DE OBRA","PZA","1.0000",0,"CERO PESOS 00/100 M.N.",0,266722]
[950018,"EXCAVACION EN ZANJA CON MEDIOS MECANICOS O MANUALES PARA LA COLOCACION DE TUBERIAS CON UNA PROFUNDIDAD DE 0.00 A 1.00 M. DE PRFUNDIDAD INC. AFINE DE FONDOS Y TALUDES, RELLENO Y COMPACTACION RETIRO DE MATERIAL EXCEDENTE FUERA DE LA OBRA.","M3 ","55.6000",0,"CERO PESOS 00/100 M.N.",0,266723]
[978456,"SUMINISTRO Y COLOCACION DE COLADERA DE FOSA 115-R PARA TUBERIA DE PVC DE 2\" Y 4\", INCLUYE: CONEXIONES, MATERIALES, HERRAMIENTAS, MANO DE OBRA Y TODO LO NECESARIO PARA SU CORRECTA INSTALACION.","PZA","12.0000",0,"CERO PESOS 00/100 M.N.",0,266724]
[null,"RESUMEN DE PARTIDAS"]
["SUP-CON-05919","CONTINUACIÓN DE LA CONSTRUCCIÓN DE UNIDAD CUNÍCULA E INSTALACIONES PLUVIALES EN EL CENTRO UNIVERSITARIO DE CIENCIAS BIOLÓGICAS Y AGROPECUARIAS CCT 14USU0130U, UBICADA EN LA LOCALIDAD LAS AGUJAS, MUNICIPIO DE ZAPOPAN, JALISCO.",null,null,null,null,{"$f":"G17","v":"$ 0.00 "}]
["A","EDIFICIO A",null,null,null,null,{"$f":"G18","v":"$ 0.00 "}]
["A.01(150)","TRABAJOS PRELIMINARES                             ",null,null,null,null,{"$f":"G19","v":"$ 0.00 "}]
["A.02(200)","ESTRUCTURA                                        ",null,null,null,null,{"$f":"G27","v":"$ 0.00 "}]
["A.03(310)","MUROS, CADENAS, CASTILLOS Y REPIZONES.            ",null,null,null,null,{"$f":"G34","v":"$ 0.00 "}]
["A.04(355)","RECUBRIMIENTOS Y ACABADOS                         ",null,null,null,null,{"$f":"G41","v":"$ 0.00 "}]
["A.05(372)","PISOS                                             ",null,null,null,null,{"$f":"G46","v":"$ 0.00 "}]
["A.06(382)","ELEMENTOS COMPLEMENTARIOS DE ALBAÑILERIA          ",null,null,null,null,{"$f":"G54","v":"$ 0.00 "}]
["A.07(390)","CARPINTERIA                                       ",null,null,null,null,{"$f":"G57","v":"$ 0.00 "}]
["A.08(393)","PINTURA                                           ",null,null,null,null,{"$f":"G59","v":"$ 0.00 "}]
["A.09(410)","CANCELERIA, HERRERIA, ALUMINIO, VIDRIOS Y CHAPAS  ",null,null,null,null,{"$f":"G64","v":"$ 0.00 "}]
["A.10(510)","INSTALACION ELECTRICA EN EDIFICIO                 ",null,null,null,null,{"$f":"G69","v":"$ 0.00 "}]
["A.11(564)","INSTALACION HIDRAULICA, SANITARIA Y GAS EN EDIF.  ",null,null,null,null,{"$f":"G76","v":"$ 0.00 "}]
["02","RED ELECTRICA",null,null,null,null,{"$f":"G79","v":"$ 0.00 "}]
["02.01(511)","INSTALACION ELECTRICA EN OBRA EXTERIOR            ",null,null,null,null,{"$f":"G80","v":"$ 0.00 "}]
["03","RED SANITARIA",null,null,null,null,{"$f":"G82","v":"$ 0.00 "}]
["03.01(565)","INSTALACION HIDRAULICA, SANITARIA Y GAS EN O. EXT.",null,null,null,null,{"$f":"G83","v":"$ 0.00 "}]
["03A","RED DE DRENAJE PLUVIAL",null,null,null,null,{"$f":"G86","v":"$ 0.00 "}]
["03A.01(568)","INSTALACION RED PLUVIAL                           ",null,null,null,null,{"$f":"G87","v":"$ 0.00 "}]
[]
["IMPORTE CON LETRA (IVA INCLUIDO)",null,null,null,null,"SUBTOTAL M.N.",{"$f":"TEXT(G17,  \"$ #,##0.00 ;\")","v":"$ 0.00 "}]
[{"$f":"UPPER(CONVERTIRNUM(ROUND( G17 * 1.16, 2)))","v":"CERO PESOS 00/100 M.N."},null,null,null,null,"IVA M.N.",{"$f":"TEXT(ROUND( G17 * 0.16, 2),  \"$ #,##0.00 ;\")","v":"$ 0.00 "}]
[null,null,null,null,null,"TOTAL M.N.",{"$f":"TEXT(ROUND( G17 * 1.16, 2),  \"$ #,##0.00 ;\")","v":"$ 0.00 "}]